[Event "Sautron op 13th"]
[Site "Sautron"]
[Date "2013.11.01"]
[Round "8"]
[White "Lejarre, Ludovic"]
[Black "Bailet, Pierre"]
[Result "1/2-1/2"]
[ECO "C85"]
[WhiteElo "2371"]
[BlackElo "2474"]
[Annotator "RR"]
[PlyCount "111"]
[EventDate "2013.10.26"]
[EventType "swiss"]
[EventRounds "9"]
[EventCountry "FRA"]
[SourceTitle "EXT 2016"]
[Source "ChessBase"]
[SourceDate "2015.10.08"]
[SourceVersion "1"]
[SourceVersionDate "2015.10.08"]
[SourceQuality "1"]
[TimeControl "40/5400+30:1800+30"]
[WhiteClock "1:30:00"]
[BlackClock "1:30:00"]

1. e4 {[%emt 0:00:00]} e5 {[%emt 0:00:00]} 2. Nf3 {[%emt 0:00:40]} Nc6 {
[%emt 0:00:08]} 3. Bb5 {[%emt 0:02:10]} a6 {[%emt 0:00:54]} 4. Ba4 {[%emt 0:00:
07]} Nf6 {[%emt 0:00:08]} 5. O-O {[%emt 0:00:15]} Be7 {[%emt 0:00:12]} 6. Bxc6
{[%emt 0:03:37] La variante d'échange différée} (6. Re1) 6... dxc6 {[%emt 0:
00:16]} 7. Qe1 {[%emt 0:00:11]} (7. d3) 7... Nd7 {[%emt 0:04:45]} (7... c5 8.
Nxe5 Qd4 9. Nf3 Qxe4 10. Qxe4 Nxe4 {Anand,V (2650)-Short,N (2660) Tilburg 1991
(7) 1/2}) 8. b3 {[%emt 0:01:32]} O-O {[%emt 0:01:18]} 9. Bb2 {[%emt 0:00:53]}
Bd6 {[%emt 0:06:44]} (9... f6 10. d4 exd4 11. Nxd4 Nc5 12. Na3 $5 {Kovalev,A 
(2545)-Biolek,R (2415) Ostrava 1993 1-0}) 10. d3 {[%emt 0:05:32]} (10. d4 exd4
11. Nxd4 Re8 12. Nd2 Ne5 13. Rd1 c5 14. Ne2 Qh4 15. Ng3 Nc6 16. f4 Bg4 17. Rb1
f6 18. e5 fxe5 19. f5 Rf8 20. Qe4 h5 21. Nc4 Rf7 22. Rf2 Raf8 23. Rbf1 Kh8 24.
Ne3 Be7 25. Nd5 Bd8 26. Ba3 b6 27. Ne3 Nd4 28. Bc1 Bg5 29. c3 Nb5 30. Nxg4 hxg4
31. Bxg5 Qxg5 32. c4 Nd6 33. Qxe5 a5 34. Kh1 Re7 35. Qb2 Ne4 36. Nxe4 Rxe4 37.
g3 Rf6 38. Qc2 Qe3 39. Rd2 Rh6 {Shabalov,A (2611)-Safarli,E (2594) Moscow 2010
1/2-1/2}) 10... Re8 {[%emt 0:04:19]} 11. Nbd2 {[%emt 0:03:04]} Nf8 {[%emt 0:06:
37][%cal Gf8e6,Gf8g6]} 12. Nc4 {[%emt 0:07:46]} Ng6 {[%emt 0:03:01]} 13. Qe3 {
[%emt 0:15:53]} c5 {[%emt 0:03:29]} 14. a4 {[%emt 0:03:24]} a5 {[%emt 0:00:51]}
15. Kh1 $146 {[%emt 0:03:17]} (15. h4 f6 16. g3 Qd7 17. Nh2 Qh3 18. Qf3 Ne7 19.
Ne3 Rf8 20. Nhg4 h5 21. Nh2 g6 22. Ng2 Nc6 23. Qe3 Kg7 24. f4 Nd4 25. Rf2 Qe6
26. Nf3 Bd7 27. Raf1 Qe7 28. fxe5 fxe5 29. Ng5 Rxf2 30. Qxf2 Rf8 31. Qxf8+ Qxf8
32. Rxf8 Kxf8 33. Ne3 b6 34. Kf2 {1/2-1/2 (34) Saulin,D (2375)-Kholmov,R (2465)
Moscow 1997}) 15... b6 {[%emt 0:05:54]} 16. Ng1 $5 {[%emt 0:10:34][%cal Gg1e2,
Gf2f4]} Bb7 {[%emt 0:14:39]} 17. Ne2 {[%emt 0:18:07]} f5 $1 {[%emt 0:05:34]}
18. exf5 {[%emt 0:01:44]} Nh4 {[%emt 0:00:22]} 19. f3 {[%emt 0:00:15]} Nxf5
$132 {[%emt 0:00:14]} 20. Qf2 {[%emt 0:00:48]} Nd4 {[%emt 0:09:24][%csl Gd4]}
21. Ng3 {[%emt 0:00:43]} Rf8 {[%emt 0:02:49]} 22. Rae1 {[%emt 0:02:14]} Qe7 {
[%emt 0:08:49]} 23. Ne4 {[%emt 0:00:14]} Rab8 $6 {[%emt 0:01:09] Un coup
bizarre} (23... Rae8 {Plus naturel}) 24. Bxd4 {[%emt 0:01:04]} cxd4 {[%emt 0:
00:12]} 25. Nexd6 {[%emt 0:00:14]} cxd6 {[%emt 0:00:32]} 26. Qxd4 {[%emt 0:00:
11]} Rf6 {[%emt 0:03:17]} 27. Qe3 {[%emt 0:04:02]} Rh6 $1 {[%emt 0:01:22][%csl
Rh2][%cal Ge7h4]} 28. h3 {[%emt 0:01:29]} (28. Qf2 Rf8 29. Qg3 Rg6) 28... Rf8 {
[%emt 0:01:03]} 29. Rf2 {[%emt 0:05:33][%cal Gf2h2] Anticipant un sacrifice en
h3} (29. Nxb6 Qe6 $1 {[%cal Gh6h3,Ge6h3]}) 29... Qh4 $44 {[%emt 0:00:46]} 30.
Nd2 {[%emt 0:02:18]} Rf5 {[%emt 0:05:00]} (30... d5 31. Rfe2 Rf5) 31. Kh2 {
[%emt 0:05:22]} Rg6 {[%emt 0:04:19]} 32. Nf1 {[%emt 0:01:45]} d5 $36 {[%emt 0:
00:42] Les pièces Noires sont trés actives contrairement à celle du rennais}
33. d4 $1 {[%emt 0:00:35]} exd4 {[%emt 0:00:22]} 34. Qd2 {[%emt 0:00:22]} h6 {
[%emt 0:00:40]} (34... d3 $5 35. cxd3 (35. Re8+) 35... d4 {[%csl Gb7]}) 35.
Re8+ {[%emt 0:00:56]} Kh7 {[%emt 0:00:18]} 36. Ree2 $6 $138 {[%emt 0:00:30]}
Ba6 {[%emt 0:00:28]} 37. Re1 {[%emt 0:00:35]} h5 {[%emt 0:01:49]} 38. g3 {
[%emt 0:00:26]} Qf6 {[%emt 0:00:30][%csl Rf3]} 39. f4 {[%emt 0:00:08]} Rh6 {
[%emt 0:04:00]} 40. Rd1 {[%emt 0:00:00]} g5 $1 {[%emt 0:00:00]} 41. Qxd4 {
[%emt 0:00:55]} gxf4 {[%emt 0:01:37]} 42. Rxf4 {[%emt 0:01:28]} Rxf4 {[%emt 0:
08:21]} 43. Qxf4 {[%emt 0:04:14]} Qxf4 {[%emt 0:04:43]} 44. gxf4 {[%emt 0:00:
07]} Bxf1 {[%emt 0:00:25]} 45. Rxf1 {[%emt 0:00:04]} Rc6 {[%emt 0:00:10]} 46.
Rf2 {[%emt 0:02:05]} Rc3 {[%emt 0:00:18]} (46... Kg6) 47. Rd2 {[%emt 0:06:28]}
Kg6 {[%emt 0:03:10]} 48. Rxd5 {[%emt 0:02:15]} Rxc2+ {[%emt 0:00:54]} 49. Kg3
Rc3+ {[%emt 0:00:57]} 50. Kh4 {[%emt 0:03:34]} Rxb3 $11 {[%emt 0:00:01]} 51.
Rg5+ {[%emt 0:00:09]} Kf6 {[%emt 0:00:07]} 52. Rxh5 {[%emt 0:00:05]} Rb4 {
[%emt 0:00:39]} 53. Kg4 {[%emt 0:00:18]} Kg7 {[%emt 0:02:03]} 54. Rg5+ {
[%emt 0:02:41]} Kf7 {[%emt 0:00:01]} 55. Rf5+ {[%emt 0:04:23]} Kg7 {[%emt 0:00:
45]} 56. Rg5+ 1/2-1/2